bitfinex/quotes_BTCUSD_20250730
["timestamp","ask_amount","ask_price","bid_price","bid_amount"]
[1753890877050,0.08311001,118180.0,118170.0,0.43552711]
[1753890877268,0.08311,118180.0,118170.0,0.44945094]
[1753890877487,0.08311,118180.0,118170.0,0.43252711]
[1753890877700,0.08411,118180.0,118170.0,0.43352711]
[1753890877925,0.08411,118180.0,118170.0,0.44198913]
[1753890878164,0.08411,118180.0,118170.0,0.41660286]
[1753890878401,0.08411,118180.0,118170.0,0.61403076]
[1753890878623,0.08411,118180.0,118170.0,0.75201292]
[1753890878829,0.08411,118180.0,118170.0,0.76047501]
[1753890879056,0.08411,118180.0,118170.0,0.76893703]
[1753890879440,0.08411,118180.0,118170.0,0.75201292]
[1753890880067,0.08411,118180.0,118170.0,0.76047501]
[1753890880453,0.08411,118180.0,118170.0,0.75201292]
[1753890881070,0.08411,118180.0,118170.0,0.74355076]
[1753890881537,0.08411,118180.0,118170.0,0.75201292]
[1753890881753,0.08411,118180.0,118170.0,0.76047501]
[1753890882260,0.08411,118180.0,118170.0,0.43832083]
[1753890882476,0.10911,118180.0,118170.0,0.19127828]
[1753890882684,0.10911,118180.0,118170.0,0.13052]
[1753890883277,0.10811,118180.0,118170.0,0.12952]
[1753890883697,0.11111,118180.0,118170.0,0.13052]
[1753890885608,0.08611,118180.0,118170.0,0.77306718]
[1753890885842,0.08079,118180.0,118170.0,0.77306718]
[1753890887124,0.07779,118180.0,118170.0,0.77206718]
[1753890888505,0.08311,118180.0,118170.0,0.79555921]
[1753890888718,0.08411,118180.0,118170.0,0.77217279]
[1753890888933,0.08411,118180.0,118170.0,0.65957734]
[1753890889156,0.08411,118180.0,118170.0,0.43625381]
[1753890889591,0.08411,118180.0,118170.0,0.45317778]
[1753890890058,0.08199,118180.0,118170.0,0.80815131]
[1753890890273,0.07879,118180.0,118170.0,0.80815131]
[1753890892071,0.08411,118180.0,118170.0,0.80815131]
[1753890893054,0.07879,118180.0,118170.0,0.80815131]
[1753890894574,0.08199,118180.0,118170.0,0.80815131]
[1753890894800,0.08411,118180.0,118170.0,0.80815131]
[1753890895466,0.08199,118180.0,118170.0,0.80815131]
[1753890896125,0.07879,118180.0,118170.0,0.80815131]
[1753890897513,0.001,118180.0,118170.0,0.68040131]
[1753890897721,0.001,118180.0,118170.0,0.80992131]
[1753890900704,0.04472,118180.0,118170.0,0.80815131]
[1753890901115,0.001,118180.0,118170.0,0.80815131]
[1753890901327,0.001,118180.0,118170.0,0.80992131]
[1753890901765,0.001,118180.0,118170.0,1.45447033]
[1753890901982,0.0322,118200.0,118190.0,0.19460104]
[1753890902210,0.0322,118200.0,118190.0,0.76361685]
[1753890902211,0.0158,118200.0,118190.0,0.76361685]
[1753890902437,0.07592,118200.0,118190.0,0.63409685]
[1753890902678,0.07592,118200.0,118190.0,0.76361685]
[1753890903349,0.07792,118200.0,118190.0,0.76461685]
[1753890903836,0.07792,118200.0,118190.0,0.77134638]
[1753890904312,0.04572,118200.0,118190.0,0.77134638]
[1753890904990,0.002,118200.0,118190.0,0.77134638]
[1753890905236,0.0183,118200.0,118190.0,0.77134638]
[1753890905428,0.06202,118200.0,118190.0,0.77134638]
[1753890905660,0.07782,118200.0,118190.0,0.77134638]
[1753890905887,0.07782,118200.0,118190.0,1.03344638]
[1753890907605,0.002,118200.0,118190.0,1.03521638]
[1753890908703,0.002,118200.0,118190.0,1.06064038]
[1753890908926,0.002,118200.0,118190.0,1.42994253]
[1753890909147,0.07542,118210.0,118200.0,0.19458457]
[1753890909363,0.03528,118220.0,118210.0,0.19456811]
[1753890909546,0.03528,118220.0,118210.0,0.77162825]
[1753890909547,0.079,118220.0,118210.0,0.77162825]
[1753890909769,0.08117,118220.0,118210.0,0.77162825]
[1753890910717,0.08417,118220.0,118210.0,0.77262825]
[1753890911185,0.08417,118220.0,118210.0,0.41155541]
[1753890911380,0.08417,118220.0,118210.0,0.77262825]
[1753890911729,0.08417,118220.0,118210.0,0.41155541]
[1753890911964,0.08417,118220.0,118210.0,0.77262825]
[1753890912429,0.08397,118220.0,118210.0,0.77262825]
[1753890912838,0.08397,118220.0,118210.0,0.77242825]
[1753890913430,0.08397,118220.0,118210.0,0.77039825]
[1753890914511,0.08397,118220.0,118210.0,0.64091825]
[1753890914715,0.47004284,118220.0,118210.0,0.001]
[1753890914955,0.83412663,118220.0,118210.0,0.001]
[1753890915169,0.0331,118200.0,118190.0,0.00014498]
[1753890915389,0.03527,118200.0,118190.0,0.38385633]
[1753890915627,0.08217,118200.0,118190.0,0.76131563]
[1753890915831,0.08217,118200.0,118190.0,0.74439417]
[1753890916035,0.08217,118200.0,118190.0,0.76131585]
[1753890916251,0.08217,118200.0,118190.0,0.76977651]
[1753890916465,0.08317,118200.0,118190.0,0.76231585]
[1753890916685,0.08297,118200.0,118190.0,0.76231592]
[1753890916915,0.08277,118200.0,118190.0,0.77077665]
[1753890917363,0.08277,118200.0,118190.0,0.762116]
[1753890917597,0.08277,118200.0,118190.0,0.761916]
[1753890917835,0.08257,118200.0,118190.0,0.7703768]
[1753890918089,0.08257,118200.0,118190.0,0.77883753]
[1753890918305,0.08237,118200.0,118190.0,0.78729812]
[1753890918515,0.08237,118200.0,118190.0,0.78709819]
[1753890918720,0.08237,118200.0,118190.0,0.42602535]
[1753890918939,0.08237,118200.0,118190.0,0.40890396]
[1753890919184,0.08237,118200.0,118190.0,0.41736469]
[1753890919370,0.08237,118200.0,118190.0,0.77862471]
[1753890919582,0.08217,118200.0,118190.0,0.41736426]
[1753890919792,0.08217,118200.0,118190.0,0.77842421]
[1753890921951,0.08217,118200.0,118190.0,0.21410228]
[1753890922159,0.08217,118200.0,118190.0,0.39178206]
[1753890922368,0.08217,118200.0,118190.0,0.41716405]
[1753890922484,0.08217,118200.0,118190.0,0.4087036]
[1753890922701,0.08217,118200.0,118190.0,0.42562457]
[1753890922931,0.07662,118200.0,118190.0,0.78045407]
[1753890923141,0.0329,118200.0,118190.0,0.78302407]
[1753890923359,0.07662,118200.0,118190.0,0.77945407]
[1753890923583,0.07879,118200.0,118190.0,0.77945407]
[1753890924008,0.07662,118200.0,118190.0,0.77945407]
[1753890924250,0.001,118200.0,118190.0,0.78222407]
[1753890926370,0.001,118200.0,118190.0,1.39712357]
[1753890926590,0.001,118200.0,118190.0,1.40842357]
[1753890926830,0.001,118200.0,118190.0,1.04432407]
[1753890927498,0.001,118200.0,118190.0,1.74842357]
[1753890927930,0.001,118200.0,118190.0,1.79757259]
[1753890928574,0.001,118200.0,118190.0,1.44477309]
[1753890929084,0.001,118200.0,118190.0,1.42677309]
[1753890929295,0.0008,118200.0,118190.0,1.42677309]
[1753890929517,0.04306,118200.0,118190.0,1.38155407]
[1753890929732,0.04306,118200.0,118190.0,1.40655407]
[1753890929957,0.0008,118200.0,118190.0,1.40655407]
[1753890930169,0.0008,118200.0,118190.0,1.40932407]
[1753890931467,0.04306,118200.0,118190.0,1.40932407]
[1753890931902,0.07446,118200.0,118190.0,1.38155407]
[1753890933924,0.07446,118200.0,118190.0,1.40655407]
[1753890934615,0.05896,118200.0,118190.0,1.40635407]
[1753890934816,0.05896,118200.0,118190.0,1.43177807]
[1753890935697,0.07506,118200.0,118190.0,1.43177807]
[1753890935910,0.07506,118200.0,118190.0,1.40677807]
[1753890936108,0.07486,118200.0,118190.0,1.40677807]
[1753890936313,0.07486,118200.0,118190.0,1.43177807]
[1753890936754,0.05876,118200.0,118190.0,1.43454807]
[1753890937237,0.0151,118210.0,118200.0,0.19458457]
[1753890937442,0.07296,118210.0,118200.0,0.76342137]
[1753890938494,0.07503,118210.0,118200.0,0.76342137]
[1753890938687,0.07703,118210.0,118200.0,0.76442137]
[1753890939551,0.08025,118210.0,118200.0,0.63286137]
[1753890939762,0.08025,118210.0,118200.0,0.76230137]
[1753890940738,0.08025,118210.0,118200.0,0.76442137]
[1753890941119,0.08025,118210.0,118200.0,1.13378479]
[1753890941341,0.07703,118210.0,118200.0,1.13378479]
[1753890941536,0.07496,118210.0,118200.0,1.13358479]
[1753890942851,0.05986,118210.0,118200.0,1.13635479]
[1753890943575,0.002,118210.0,118200.0,1.13635479]
[1753890944023,0.07626,118210.0,118200.0,1.13358479]
[1753890947136,0.07626,118210.0,118200.0,1.39568479]
[1753890948507,0.08155,118210.0,118200.0,1.39568479]
[1753890949011,0.07626,118210.0,118200.0,1.39568479]
[1753890951861,0.07506,118210.0,118200.0,1.39568479]
[1753890952982,0.08035,118210.0,118200.0,0.40950187]
[1753890953203,0.08035,118210.0,118200.0,0.77058333]
[1753890958611,0.08035,118210.0,118200.0,0.0854773]
[1753890958836,0.1079936,118210.0,118200.0,0.13044]
[1753890959938,0.10535,118210.0,118200.0,0.13044]
[1753890961293,0.1079936,118210.0,118200.0,0.13044]
[1753890963406,0.4479936,118210.0,118200.0,0.13044]
[1753890963626,0.44535,118210.0,118200.0,0.143484]
[1753890964900,0.80643146,118210.0,118200.0,0.014044]
[1753890965117,0.90835778,118210.0,118200.0,0.001]
[1753890966033,0.031,118190.0,118180.0,0.12944]
[1753890966253,0.03573404,118190.0,118180.0,0.14243747]
[1753890966469,0.08164404,118190.0,118180.0,0.14243747]
[1753890969831,0.08855997,118190.0,118180.0,0.14243747]
[1753890970249,0.08955997,118190.0,118180.0,0.14443747]
[1753890974240,0.11455997,118190.0,118180.0,0.14443747]
[1753890974443,0.45455997,118190.0,118180.0,0.14443747]
[1753890974654,0.45191593,118190.0,118180.0,0.14443747]
[1753890974866,0.81299739,118190.0,118180.0,0.14443747]
[1753890975569,0.45191593,118190.0,118180.0,0.14443747]
[1753890976500,0.45191593,118190.0,118180.0,0.01499747]
[1753890977571,0.81299739,118190.0,118180.0,0.002]
[1753890978451,0.78099739,118190.0,118160.0,0.12996474]
[1753890978676,0.0569,118170.0,118160.0,0.00048474]
[1753890978900,0.05899,118170.0,118160.0,0.00048474]
[1753890979139,0.10754449,118170.0,118160.0,0.00263474]
[1753890979358,0.10754449,118170.0,118160.0,0.00048474]
[1753890979590,0.1049,118170.0,118160.0,0.00048474]
[1753890979822,0.10754449,118170.0,118160.0,0.00048474]
[1753890980054,0.10754449,118170.0,118160.0,0.3637162]
[1753890980541,0.89310325,118170.0,118160.0,0.00048474]
[1753890980776,0.89045876,118170.0,118160.0,0.00048474]
[1753890980989,0.90990778,118170.0,118160.0,0.00148474]
[1753890981433,0.90790778,118170.0,118160.0,0.00048474]
[1753890981653,0.91090778,118170.0,118160.0,0.00148474]
[1753890982536,1.04066778,118170.0,118160.0,0.00148474]
[1753890983202,1.03766778,118170.0,118160.0,0.00048474]
[1753890983684,1.04466778,118170.0,118160.0,0.00148474]
[1753890989483,6.04466778,118170.0,118160.0,0.00148474]
[1753890990890,5.68346632,118170.0,118160.0,0.00148474]
[1753890991118,6.04454778,118170.0,118160.0,0.00148474]
[1753890991476,0.34,118150.0,118120.0,0.67934719]
[1753890991656,0.05984516,118140.0,118120.0,0.38620644]
[1753890991858,0.10022516,118140.0,118130.0,0.36305146]
[1753890992224,0.10022516,118140.0,118130.0,0.36582146]
[1753890992827,0.10022516,118140.0,118130.0,0.00197]
[1753890994362,0.10337516,118140.0,118130.0,0.00197]
[1753890994580,0.10546516,118140.0,118130.0,0.00197]
[1753890995026,0.11274657,118140.0,118130.0,0.00197]
[1753890995446,0.11674657,118140.0,118130.0,0.00297]
[1753890999644,0.11150657,118140.0,118130.0,0.00297]
[1753891000126,0.029,118140.0,118130.0,0.54459156]
[1753891000358,0.029,118140.0,118130.0,0.36682146]
[1753891000549,0.10382516,118140.0,118130.0,0.36405146]
[1753891001006,0.10382516,118140.0,118130.0,0.13269]
[1753891001251,0.10382516,118140.0,118130.0,0.49377146]
[1753891001910,0.10906516,118140.0,118130.0,0.13269]
[1753891002149,0.11642636,118140.0,118130.0,0.00297]
[1753891002368,0.11118636,118140.0,118130.0,0.36405146]
[1753891003508,0.11118636,118140.0,118130.0,0.00297]
[1753891003509,0.11642636,118140.0,118130.0,0.00297]
[1753891003746,0.11642636,118140.0,118130.0,0.001]
[1753891005516,0.81750782,118140.0,118130.0,0.001]
[1753891005737,0.81486266,118140.0,118130.0,0.001]
[1753891007036,0.89933996,118140.0,118130.0,0.001]
[1753891007906,0.5382585,118140.0,118130.0,0.001]
[1753891012649,0.89933996,118140.0,118130.0,0.001]
[1753891017389,1.09933996,118140.0,118130.0,0.001]
[1753891018045,1.11678898,118140.0,118130.0,0.001]
[1753891018264,1.31678898,118140.0,118130.0,0.001]
[1753891018513,6.47525294,118140.0,118130.0,0.001]
[1753891018751,6.51626507,118140.0,118130.0,0.001]
[1753891019197,6.51626507,118140.0,118110.0,0.8]
[1753891019407,0.75758146,118120.0,118110.0,0.8]
[1753891019607,0.88623876,118120.0,118110.0,0.8]
[1753891020295,1.10368778,118120.0,118110.0,0.8]
[1753891020563,1.10368778,118120.0,118110.0,0.80014503]
[1753891021190,0.74260632,118120.0,118110.0,0.80014503]
[1753891021414,1.10368778,118120.0,118110.0,0.80014503]
[1753891021657,1.10368778,118120.0,118110.0,0.80114503]
[1753891021913,1.10768778,118120.0,118110.0,0.80114503]
[1753891023002,1.30768778,118120.0,118110.0,0.80114503]
[1753891023430,6.30768778,118120.0,118110.0,0.80114503]
[1753891024063,6.43740778,118120.0,118110.0,0.80114503]
[1753891025016,6.07632632,118120.0,118110.0,0.80114503]
[1753891025225,5.67632632,118120.0,118110.0,0.80114503]
[1753891025439,0.5238873,118120.0,118110.0,0.80319503]
[1753891025689,0.6536073,118120.0,118110.0,0.80319503]
[1753891025905,0.6557273,118120.0,118110.0,0.80114503]
[1753891026119,1.01995876,118120.0,118110.0,0.80114503]
[1753891026532,1.23740778,118120.0,118110.0,0.80114503]
[1753891026973,0.87632632,118120.0,118110.0,0.80114503]
[1753891027171,0.67632632,118120.0,118110.0,0.80114503]
[1753891027571,1.03740778,118120.0,118110.0,0.80114503]
[1753891029826,0.67632632,118120.0,118110.0,0.80114503]
[1753891030461,1.03740778,118120.0,118110.0,0.80114503]
[1753891033556,0.67632632,118120.0,118110.0,0.80114503]
[1753891033783,0.58661902,118120.0,118110.0,1.16704649]
[1753891034001,0.51620902,118120.0,118110.0,1.16704649]
[1753891034283,0.38644902,118120.0,118110.0,1.17934649]
[1753891035182,0.38244902,118120.0,118110.0,1.17834649]
[1753891035615,0.38244902,118120.0,118110.0,1.17934649]
[1753891035616,0.38444902,118120.0,118110.0,1.17934649]
[1753891036169,0.38444902,118120.0,118110.0,1.16704649]
[1753891036789,0.35944902,118120.0,118110.0,1.38077941]
[1753891037003,0.01944902,118120.0,118110.0,1.38924559]
[1753891037233,0.01944902,118120.0,118110.0,1.47372289]
[1753891037447,0.01944902,118120.0,118110.0,1.83480435]
[1753891037661,0.01944902,118120.0,118110.0,1.47372289]
[1753891039760,0.002,118120.0,118110.0,1.81372289]
[1753891040927,0.002,118120.0,118110.0,1.82101512]
[1753891041849,0.002,118120.0,118110.0,1.81372289]
[1753891043957,0.002,118120.0,118110.0,2.17480435]
[1753891045208,0.002,118120.0,118110.0,2.30444435]
[1753891048546,0.04074,118140.0,118130.0,0.19469987]
[1753891048761,0.04074,118140.0,118130.0,0.78416863]
[1753891048952,0.13360275,118150.0,118140.0,0.18621923]
[1753891049110,0.13360275,118150.0,118140.0,0.66198213]
[1753891049535,0.13624769,118150.0,118140.0,0.67044666]
[1753891049741,0.13360275,118150.0,118140.0,0.67891112]
[1753891049941,0.13360275,118150.0,118140.0,0.66198213]
[1753891050546,0.13624769,118150.0,118140.0,0.66198213]
[1753891050902,0.17268769,118150.0,118140.0,0.49064146]
[1753891051098,0.17004275,118150.0,118140.0,0.49064146]
[1753891052496,0.10418,118150.0,118140.0,0.49164146]
[1753891054248,0.09924,118150.0,118140.0,0.68837514]
[1753891054477,0.09924,118150.0,118140.0,0.67144666]
[1753891054698,0.09924,118150.0,118140.0,0.68837536]
[1753891054923,0.09924,118150.0,118140.0,0.67991112]
[1753891055142,0.09924,118150.0,118140.0,0.67144666]
[1753891055584,0.04274,118150.0,118140.0,0.79638655]
[1753891055802,0.002,118150.0,118140.0,0.78792252]
[1753891056026,0.04274,118150.0,118140.0,0.79255065]
[1753891056228,0.04274,118150.0,118140.0,0.78408662]
[1753891056972,0.04274,118150.0,118140.0,0.79255065]
[1753891057190,0.04274,118150.0,118140.0,0.77285259]
[1753891057403,0.08018,118150.0,118140.0,0.57816876]
[1753891057620,0.08018,118150.0,118140.0,0.75592396]
[1753891057828,0.08018,118150.0,118140.0,0.76438842]
[1753891058371,0.08018,118150.0,118140.0,0.57816876]
[1753891058657,0.08018,118150.0,118140.0,0.76438835]
[1753891058908,0.08018,118150.0,118140.0,0.77285266]
[1753891059182,0.07725,118150.0,118140.0,0.78131683]
[1753891059421,0.04274,118150.0,118140.0,0.78978043]
[1753891059622,0.002,118150.0,118140.0,0.80485043]
[1753891059834,0.04274,118150.0,118140.0,0.80485043]
[1753891060476,0.04274,118150.0,118140.0,0.79255043]
[1753891061104,0.04274,118150.0,118140.0,0.80485043]
[1753891061560,0.04274,118150.0,118140.0,0.79255043]
[1753891061772,0.04274,118150.0,118140.0,0.78978043]
[1753891063626,0.04274,118150.0,118140.0,0.76438813]
[1753891063853,0.07384,118150.0,118140.0,0.75592382]
[1753891064070,0.07585,118150.0,118140.0,0.0875273]
[1753891064286,0.07878,118150.0,118140.0,0.76233827]
[1753891064506,0.07878,118150.0,118140.0,0.77080237]
[1753891064717,0.07878,118150.0,118140.0,0.63277835]
[1753891064975,0.07878,118150.0,118140.0,0.76434835]
[1753891065195,0.07878,118150.0,118140.0,0.77281266]
[1753891065406,0.07878,118150.0,118140.0,0.76434835]
[1753891065943,0.07878,118150.0,118140.0,0.77281252]
[1753891066162,0.07878,118150.0,118140.0,0.74741943]
[1753891066378,0.07878,118150.0,118140.0,0.2149973]
[1753891066602,0.10378,118150.0,118140.0,0.36208146]
[1753891066831,0.10378,118150.0,118140.0,0.13052]
[1753891067286,0.10642494,118150.0,118140.0,0.13052]
[1753891067766,0.10378,118150.0,118140.0,0.13052]
[1753891070407,0.10378,118150.0,118140.0,0.001]
[1753891070822,0.10642494,118150.0,118140.0,0.001]
[1753891073777,0.10642494,118150.0,118140.0,0.36208146]
[1753891073998,0.10642494,118150.0,118140.0,0.41124161]
[1753891075842,0.8919837,118150.0,118140.0,0.001]
[1753891076069,0.91342255,118150.0,118140.0,0.001]
[1753891076282,0.88933876,118150.0,118140.0,0.001]
[1753891077137,0.85623876,118150.0,118120.0,0.49060146]
[1753891077350,0.85623876,118150.0,118110.0,0.80014503]
[1753891077351,0.0557,118120.0,118110.0,0.80014503]
[1753891077627,0.05774,118120.0,118110.0,1.29288649]
[1753891077772,0.09837,118120.0,118110.0,1.29288649]
[1753891079341,0.10144,118120.0,118110.0,1.29288649]
[1753891080205,0.09837,118120.0,118110.0,1.29288649]
[1753891080771,0.09937,118120.0,118110.0,1.29488649]
[1753891080995,0.09733,118120.0,118110.0,1.48961963]
[1753891081235,0.09733,118120.0,118110.0,1.48961977]
[1753891081446,0.001,118120.0,118110.0,1.96718096]
[1753891081581,0.001,118120.0,118110.0,2.31388096]
[1753891085540,0.001,118120.0,118110.0,2.30718096]
[1753891085732,0.001,118120.0,118110.0,2.29488096]
[1753891085955,0.07213,118120.0,118110.0,1.58984379]
[1753891086162,0.10224,118120.0,118110.0,1.46208016]
[1753891086377,0.10224,118120.0,118110.0,1.47054677]
[1753891086579,0.10224,118120.0,118110.0,1.46422016]
[1753891087373,0.1099766,118120.0,118110.0,1.46422016]
[1753891087581,0.10224,118120.0,118110.0,1.47268684]
[1753891087819,0.10224,118120.0,118110.0,1.46422016]
[1753891088356,0.10224,118120.0,118110.0,1.29488649]
[1753891088564,0.10224,118120.0,118110.0,1.46422016]
[1753891088944,0.10224,118120.0,118110.0,1.48115338]
[1753891089154,0.10224,118120.0,118110.0,1.47268684]
[1753891089385,0.10224,118120.0,118110.0,1.46422016]
[1753891089604,0.10224,118120.0,118110.0,1.47268684]
[1753891089826,0.09713,118120.0,118110.0,1.46422016]
[1753891091546,0.09713,118120.0,118110.0,1.47268684]
[1753891091768,0.09713,118120.0,118110.0,1.46422016]
[1753891092285,0.09713,118120.0,118110.0,1.47268684]
[1753891092539,0.09713,118120.0,118110.0,1.46422016]
[1753891092787,0.09713,118120.0,118110.0,1.47268684]
[1753891093019,0.09713,118120.0,118110.0,1.46422016]
[1753891093707,0.09713,118120.0,118110.0,1.47268684]
[1753891093934,0.09713,118120.0,118110.0,1.29488649]
[1753891094576,0.09713,118120.0,118110.0,1.30335317]
[1753891094788,0.09713,118120.0,118110.0,1.29488649]
[1753891095037,0.09713,118120.0,118110.0,0.93380503]
[1753891095240,0.09713,118120.0,118110.0,1.29488649]
[1753891095401,0.1002,118120.0,118110.0,1.29488649]
[1753891096375,0.1002,118120.0,118110.0,1.46422016]
[1753891096628,0.001,118120.0,118110.0,1.50085587]
[1753891096839,0.001,118120.0,118110.0,2.29871463]
[1753891097891,0.001,118120.0,118110.0,2.28641463]
[1753891098125,0.001,118120.0,118110.0,1.92533317]
[1753891099393,0.001,118120.0,118110.0,2.28641463]
[1753891100030,0.001,118120.0,118110.0,2.29871463]
[1753891100249,0.001,118120.0,118110.0,2.30541463]
[1753891103431,0.001,118120.0,118110.0,2.29871463]
[1753891104311,0.001,118120.0,118110.0,2.28641463]
[1753891105039,0.04163,118120.0,118110.0,2.28641463]
[1753891106402,0.001,118120.0,118110.0,2.28641463]
[1753891106628,0.001,118120.0,118110.0,2.56751463]
[1753891107565,0.001,118120.0,118110.0,2.59295863]
[1753891108536,0.001,118120.0,118110.0,2.61040765]
[1753891109210,0.03787,118140.0,118130.0,0.53469987]
[1753891109484,0.03787,118140.0,118130.0,1.10977863]
[1753891109680,0.03787,118140.0,118130.0,1.11172863]
[1753891110376,0.06807,118160.0,118140.0,0.1777547]
[1753891110640,0.03335,118160.0,118150.0,1.12286082]
[1753891110895,0.03544,118160.0,118150.0,0.76970582]
[1753891111156,0.07331,118160.0,118150.0,0.76970582]
[1753891111623,0.07331,118160.0,118150.0,0.7781692]
[1753891111885,0.07331,118160.0,118150.0,0.78677754]
[1753891112910,0.04287,118160.0,118150.0,1.490809]
[1753891113449,0.05797,118160.0,118150.0,1.490809]
[1753891113713,0.07297,118160.0,118150.0,1.490809]
[1753891114998,0.07297,118160.0,118150.0,1.51606597]
[1753891116136,0.04287,118160.0,118150.0,1.51606597]
[1753891118512,0.05847,118160.0,118150.0,1.51606597]
[1753891120523,0.005,118160.0,118150.0,1.79993597]
[1753891120742,0.005,118160.0,118150.0,1.82536997]
[1753891121647,0.005,118160.0,118150.0,1.81866997]
[1753891121868,0.005,118160.0,118150.0,1.80636997]
[1753891122123,0.0318,118170.0,118160.0,0.53465043]
[1753891122378,0.0318,118170.0,118160.0,1.47073065]
[1753891122636,0.0318,118170.0,118160.0,1.47268065]
[1753891122836,0.06967,118170.0,118160.0,1.47268065]
[1753891123280,0.06967,118170.0,118160.0,0.75051773]
[1753891123496,0.07491,118170.0,118160.0,1.47073065]
[1753891123705,0.07991,118170.0,118160.0,1.47173065]
[1753891125862,0.10491,118170.0,118160.0,0.83152146]
[1753891126082,0.10491,118170.0,118160.0,0.001]
[1753891126297,0.10491,118170.0,118160.0,0.49152146]
[1753891127153,0.10491,118170.0,118160.0,0.001]
[1753891127388,0.10491,118170.0,118160.0,0.49152146]
[1753891129406,0.10491,118170.0,118160.0,0.49998456]
[1753891130089,0.10491,118170.0,118160.0,0.49152146]
[1753891135017,0.10491,118170.0,118160.0,0.48352146]
[1753891136192,0.10991,118170.0,118160.0,0.66970945]
[1753891136425,0.10991,118170.0,118160.0,0.66124657]
[1753891136649,0.10991,118170.0,118160.0,0.67817254]
[1753891136867,0.10991,118170.0,118160.0,0.66970959]
[1753891137073,0.10991,118170.0,118160.0,0.66124657]
[1753891137280,0.10991,118170.0,118160.0,0.48352146]
[1753891138241,0.10991,118170.0,118160.0,0.49052146]
[1753891138861,0.10991,118170.0,118160.0,0.65978347]
[1753891139069,0.10991,118170.0,118160.0,0.66824649]
[1753891139271,0.10991,118170.0,118160.0,0.67670944]
[1753891139482,0.10991,118170.0,118160.0,0.65978347]
[1753891139690,0.10991,118170.0,118160.0,0.49052146]
[1753891141381,0.10991,118170.0,118160.0,0.49048146]
[1753891150880,0.10991,118170.0,118160.0,0.36108146]
[1753891151274,0.10991,118170.0,118160.0,0.49048146]
[1753891154244,0.10991,118170.0,118160.0,0.49263146]
[1753891159029,0.10991,118170.0,118160.0,0.49048146]
[1753891159277,0.10991,118170.0,118160.0,0.04906265]
[1753891159484,0.10991,118170.0,118160.0,0.17846265]
[1753891159973,0.0566,118160.0,118150.0,0.00014503]
[1753891160228,0.05866,118160.0,118150.0,0.00014503]
[1753891160500,0.10221471,118160.0,118150.0,0.12950503]
[1753891161371,0.10621471,118160.0,118150.0,0.13050503]
[1753891162893,0.10821471,118160.0,118150.0,0.13050503]
[1753891163115,0.10821471,118160.0,118150.0,0.17966368]
[1753891163526,0.10821471,118160.0,118150.0,0.13050503]
[1753891164182,0.10821471,118160.0,118150.0,0.00114503]
[1753891164394,0.10821471,118160.0,118150.0,0.13050503]
[1753891167680,0.10557,118160.0,118150.0,0.49370649]
[1753891168625,0.10051,118160.0,118150.0,0.13539503]
[1753891168774,0.031,118160.0,118150.0,0.71622476]
[1753891168974,0.08407,118160.0,118150.0,0.6959907]
[1753891169206,0.09957,118160.0,118150.0,0.6959907]
[1753891169421,0.10153,118160.0,118150.0,0.39735436]
[1753891169571,0.10457,118160.0,118150.0,0.00114503]
[1753891169784,0.10721471,118160.0,118150.0,0.00114503]
[1753891169987,0.10721471,118160.0,118150.0,0.13050503]
[1753891170194,0.10221471,118160.0,118150.0,0.49370649]
[1753891170401,0.09957,118160.0,118150.0,0.66298283]
[1753891170825,0.07457,118160.0,118150.0,0.66298283]
[1753891171236,0.0465,118160.0,118150.0,0.6826801]
[1753891171463,0.031,118160.0,118150.0,0.68268024]
[1753891171677,0.031,118160.0,118150.0,0.66575283]
[1753891171884,0.10027,118160.0,118150.0,0.67421664]
[1753891172098,0.10027,118160.0,118150.0,0.68268031]
[1753891172315,0.08397,118160.0,118150.0,0.69114384]
[1753891172526,0.031,118160.0,118150.0,0.69960729]
[1753891173176,0.031,118160.0,118150.0,0.7080706]
[1753891173378,0.006,118160.0,118150.0,1.15362936]
[1753891173596,0.006,118160.0,118150.0,1.77472936]
[1753891178335,0.006,118160.0,118150.0,1.80016436]
[1753891182105,0.006,118160.0,118150.0,1.79346436]
[1753891184972,0.006,118160.0,118150.0,1.80016436]
[1753891186500,0.006,118160.0,118150.0,1.79346436]
[1753891187339,0.04327,118160.0,118150.0,1.79346436]
[1753891188123,0.04327,118160.0,118150.0,1.78116436]
[1753891188358,0.04327,118160.0,118150.0,1.2879529]
[1753891188359,0.07907,118160.0,118150.0,1.2879529]
[1753891188571,0.07907,118160.0,118150.0,1.4151529]
[1753891189188,0.07907,118160.0,118150.0,1.4172729]
[1753891189604,0.07907,118160.0,118150.0,1.1551729]
[1753891189823,0.07603,118160.0,118150.0,1.1551729]
[1753891190021,0.07907,118160.0,118150.0,1.1551729]
[1753891190220,0.07907,118160.0,118150.0,1.1530529]
[1753891190625,0.07907,118160.0,118150.0,1.1551729]
[1753891192768,0.07907,118160.0,118150.0,0.79409144]
[1753891192973,0.07907,118160.0,118150.0,1.1530529]
[1753891194441,0.07907,118160.0,118150.0,0.49150649]
[1753891194442,0.10407,118160.0,118150.0,0.49150649]
[1753891195356,0.10407,118160.0,118150.0,0.66924664]
[1753891195581,0.10407,118160.0,118150.0,0.66078283]
[1753891195809,0.10407,118160.0,118150.0,0.49150649]
[1753891196293,0.10407,118160.0,118150.0,0.66924664]
[1753891196520,0.10407,118160.0,118150.0,0.67771024]
[1753891196841,0.10407,118160.0,118150.0,0.66924664]
[1753891197115,0.10407,118160.0,118150.0,0.67771024]
[1753891197350,0.10407,118160.0,118150.0,0.69463693]
[1753891197561,0.07407,118160.0,118150.0,0.69669693]
[1753891197782,0.04327,118160.0,118150.0,1.48502569]
[1753891198030,0.006,118160.0,118150.0,1.48502569]
[1753891198495,0.04269,118160.0,118150.0,1.48502569]
[1753891199355,0.006,118160.0,118150.0,1.49732569]
[1753891199574,0.006,118160.0,118150.0,1.50402569]
[1753891200901,0.006,118160.0,118150.0,1.76612569]
[1753891201572,0.006,118160.0,118150.0,1.75942569]
[1753891201802,0.006,118160.0,118150.0,1.74712569]
[1753891203642,0.006,118160.0,118150.0,1.50402569]
[1753891204113,0.006,118160.0,118150.0,1.52338433]
[1753891204325,0.006,118160.0,118150.0,1.54881833]
[1753891204563,0.006,118160.0,118150.0,1.53651833]
[1753891204789,0.006,118160.0,118150.0,1.40723833]